[Event "*** Titled Tuesday Blitz"]
[Site "Chess.com"]
[Date "2021.03.16"]
[Round "11"]
[White "The_filthy"]
[Black "NateSolon"]
[Result "0-1"]
[WhiteElo "2321"]
[BlackElo "2550"]
[TimeControl "180+1"]
[EndTime "12:05:32 PDT"]
[Termination "NateSolon won by resignation"]

1. e4 {[%clk 0:03:00.9]} 1... c5 {[%clk 0:02:59.6]} 2. Nf3 {[%clk 0:03:01]} 2...
d6 {[%clk 0:02:59.7]} 3. d4 {[%clk 0:03:01.2]} 3... cxd4 {[%clk 0:03:00.6]} 4.
Nxd4 {[%clk 0:03:01.8]} 4... Nf6 {[%clk 0:03:01.2]} 5. Nc3 {[%clk 0:03:02.2]}
5... a6 {[%clk 0:03:01.5]} 6. Be3 {[%clk 0:03:02.1]} 6... e5 {[%clk 0:03:01.5]}
7. Nb3 {[%clk 0:03:01.9]} 7... Be7 {[%clk 0:03:01.7]} 8. f3 {[%clk 0:03:02.5]}
8... h5 {[%clk 0:02:59.8]} 9. Qd2 {[%clk 0:03:02.7]} 9... Be6 {[%clk 0:02:59.1]}
10. O-O-O {[%clk 0:03:02.8]} 10... Nbd7 {[%clk 0:02:59]} 11. h3 {[%clk
0:03:03.1]} 11... Rc8 {[%clk 0:02:53.4]} 12. f4 {[%clk 0:03:03]} 12... Qc7
{[%clk 0:02:42.1]} 13. f5 {[%clk 0:02:52.2]} 13... Bc4 {[%clk 0:02:42]} 14. Kb1
{[%clk 0:02:49.9]} 14... b5 {[%clk 0:02:35.6]} 15. Bd3 {[%clk 0:02:39.1]} 15...
Nb6 {[%clk 0:02:22.6]} 16. Bxb6 {[%clk 0:02:33.7]} 16... Qxb6 {[%clk 0:02:22.9]}
17. g4 {[%clk 0:02:25.5]} 17... b4 {[%clk 0:01:35.8]} 18. Ne2 {[%clk 0:01:43.9]}
18... a5 {[%clk 0:01:30.2]} 19. g5 {[%clk 0:01:42.4]} 19... Nd7 {[%clk
0:01:30.1]} 20. Bxc4 {[%clk 0:01:34.6]} 20... Rxc4 {[%clk 0:01:31]} 21. g6
{[%clk 0:01:21.3]} 21... Nf6 {[%clk 0:01:26.6]} 22. gxf7+ {[%clk 0:01:19.8]}
22... Kxf7 {[%clk 0:01:27.5]} 23. Ng3 {[%clk 0:01:09.4]} 23... h4 {[%clk
0:01:20.2]} 24. Qd3 {[%clk 0:01:08.6]} 24... Rhc8 {[%clk 0:01:18.6]} 25. Nd2
{[%clk 0:01:01.9]} 25... Rxc2 {[%clk 0:01:07.5]} 26. Ne2 {[%clk 0:00:50.9]}
26... a4 {[%clk 0:01:00.1]} 27. Rc1 {[%clk 0:00:44.5]} 27... Rxc1+ {[%clk
0:00:58.6]} 28. Rxc1 {[%clk 0:00:44.5]} 28... Rxc1+ {[%clk 0:00:58.5]} 29. Nxc1
{[%clk 0:00:45.4]} 29... Qc5 {[%clk 0:00:46.3]} 30. Nf3 {[%clk 0:00:44.4]} 30...
Nh5 {[%clk 0:00:40.8]} 31. Ne2 {[%clk 0:00:41.7]} 31... Ng3 {[%clk 0:00:36.2]}
32. Nd2 {[%clk 0:00:31.2]} 32... Nxe2 {[%clk 0:00:32]} 33. Qxe2 {[%clk
0:00:32.1]} 33... Qg1+ {[%clk 0:00:22.5]} 34. Kc2 {[%clk 0:00:30.5]} 34... Qc5+
{[%clk 0:00:19.1]} 35. Kb1 {[%clk 0:00:30]} 35... Kf8 {[%clk 0:00:19]} 36. Qc4
{[%clk 0:00:21.5]} 36... Qxc4 {[%clk 0:00:15.3]} 37. Nxc4 {[%clk 0:00:22.4]}
37... g6 {[%clk 0:00:15.6]} 38. Ne3 {[%clk 0:00:19.8]} 38... Bg5 {[%clk
0:00:15.1]} 39. Nc4 {[%clk 0:00:17.9]} 39... gxf5 {[%clk 0:00:15.3]} 40. Nxd6
{[%clk 0:00:16]} 40... fxe4 {[%clk 0:00:12.3]} 41. Nxe4 {[%clk 0:00:15.5]} 41...
Bf4 {[%clk 0:00:12.5]} 42. Nc5 {[%clk 0:00:12]} 42... a3 {[%clk 0:00:12.2]} 43.
bxa3 {[%clk 0:00:12]} 43... bxa3 {[%clk 0:00:13.1]} 44. Kc2 {[%clk 0:00:12.1]}
44... Ke7 {[%clk 0:00:10.9]} 45. Kb3 {[%clk 0:00:11.5]} 45... Bc1 {[%clk
0:00:11.2]} 46. Kc4 {[%clk 0:00:08.9]} 46... Kf6 {[%clk 0:00:09]} 47. Kd5 {[%clk
0:00:08.1]} 47... Bb2 {[%clk 0:00:08.6]} 48. Nd3 {[%clk 0:00:04.4]} 48... Kf5
{[%clk 0:00:08.4]} 49. Nf2 {[%clk 0:00:03.4]} 49... Kf4 {[%clk 0:00:07.5]} 50.
Nd3+ {[%clk 0:00:03]} 50... Kg3 {[%clk 0:00:08]} 51. Nxe5 {[%clk 0:00:03.2]}
51... Bxe5 {[%clk 0:00:08.9]} 52. Kxe5 {[%clk 0:00:03.8]} 52... Kxh3 {[%clk
0:00:09.3]} 0-1

[Event "*** Titled Tuesday Blitz"]
[Site "Chess.com"]
[Date "2021.03.16"]
[Round "11"]
[White "UCantHandleDenker"]
[Black "Forantes"]
[Result "0-1"]
[WhiteElo "2495"]
[BlackElo "2431"]
[TimeControl "180+1"]
[EndTime "12:05:36 PDT"]
[Termination "Forantes won by checkmate"]

1. Nf3 {[%clk 0:03:00.9]} 1... Nf6 {[%clk 0:02:59]} 2. g3 {[%clk 0:03:01.2]}
2... g6 {[%clk 0:02:59.3]} 3. Bg2 {[%clk 0:03:01.6]} 3... Bg7 {[%clk 0:02:59.9]}
4. O-O {[%clk 0:03:02.1]} 4... O-O {[%clk 0:03:00.5]} 5. d3 {[%clk 0:03:02.6]}
5... d5 {[%clk 0:03:01]} 6. Nbd2 {[%clk 0:03:03.2]} 6... c5 {[%clk 0:03:01.6]}
7. e4 {[%clk 0:03:03.2]} 7... Nc6 {[%clk 0:03:02]} 8. Re1 {[%clk 0:03:03.2]}
8... dxe4 {[%clk 0:02:55.3]} 9. dxe4 {[%clk 0:03:02.4]} 9... Bg4 {[%clk
0:02:54.3]} 10. h3 {[%clk 0:03:02.7]} 10... Bd7 {[%clk 0:02:54.2]} 11. e5 {[%clk
0:02:58.1]} 11... Ne8 {[%clk 0:02:37.8]} 12. c3 {[%clk 0:02:24]} 12... Qc8
{[%clk 0:02:36.7]} 13. Kh2 {[%clk 0:02:22.5]} 13... Nc7 {[%clk 0:02:36.8]} 14.
Qe2 {[%clk 0:02:22]} 14... Rd8 {[%clk 0:02:32.7]} 15. a4 {[%clk 0:02:21.4]}
15... Bf5 {[%clk 0:02:22.5]} 16. Ne4 {[%clk 0:02:16.4]} 16... Na6 {[%clk
0:01:49.5]} 17. Bf4 {[%clk 0:02:11.3]} 17... Na5 {[%clk 0:01:24.6]} 18. g4
{[%clk 0:02:07.9]} 18... Be6 {[%clk 0:01:24]} 19. Rad1 {[%clk 0:02:01.8]} 19...
Bc4 {[%clk 0:01:22.2]} 20. Qe3 {[%clk 0:02:01.1]} 20... Nb3 {[%clk 0:01:18.5]}
21. Bh6 {[%clk 0:01:51.7]} 21... Bh8 {[%clk 0:01:15.9]} 22. Bg5 {[%clk
0:01:43.5]} 22... Qc7 {[%clk 0:01:13.9]} 23. Bf4 {[%clk 0:01:29.7]} 23... Qb6
{[%clk 0:01:05.9]} 24. Neg5 {[%clk 0:01:27.9]} 24... Rxd1 {[%clk 0:00:55.1]} 25.
Rxd1 {[%clk 0:01:27.4]} 25... Rd8 {[%clk 0:00:55.8]} 26. Rxd8+ {[%clk
0:01:22.9]} 26... Qxd8 {[%clk 0:00:56.7]} 27. e6 {[%clk 0:01:22.5]} 27... f6
{[%clk 0:00:33]} 28. Nf7 {[%clk 0:01:22.2]} 28... Qc8 {[%clk 0:00:33.2]} 29. Qe4
{[%clk 0:00:55.4]} 29... Bxe6 {[%clk 0:00:15.4]} 30. Nxh8 {[%clk 0:00:53]} 30...
Kxh8 {[%clk 0:00:14.8]} 31. Ne1 {[%clk 0:00:32.2]} 31... c4 {[%clk 0:00:10.3]}
32. Nc2 {[%clk 0:00:23.3]} 32... Nac5 {[%clk 0:00:09.4]} 33. Qe2 {[%clk
0:00:22.5]} 33... Qd7 {[%clk 0:00:05]} 34. Nb4 {[%clk 0:00:17.3]} 34... a5
{[%clk 0:00:03.2]} 35. Nc2 {[%clk 0:00:08.4]} 35... Qd3 {[%clk 0:00:03.9]} 36.
Nd4 {[%clk 0:00:04.4]} 36... Nxd4 {[%clk 0:00:02.8]} 37. Qe1 {[%clk 0:00:04.8]}
37... Nc6 {[%clk 0:00:02.1]} 38. Be3 {[%clk 0:00:02.8]} 38... Qd6+ {[%clk
0:00:01.3]} 39. Kg1 {[%clk 0:00:03.7]} 39... Qd7 {[%clk 0:00:01.6]} 40. Qe2
{[%clk 0:00:04.2]} 40... Bd5 {[%clk 0:00:02.1]} 41. Qf1 {[%clk 0:00:04.2]} 41...
Bxg2 {[%clk 0:00:02.4]} 42. Qxg2 {[%clk 0:00:05.1]} 42... Nd3 {[%clk 0:00:03.2]}
43. Qf3 {[%clk 0:00:05.4]} 43... Kg7 {[%clk 0:00:03.9]} 44. g5 {[%clk
0:00:04.9]} 44... Nce5 {[%clk 0:00:04.6]} 45. gxf6+ {[%clk 0:00:04.8]} 45...
exf6 {[%clk 0:00:05.5]} 46. Qe4 {[%clk 0:00:05.2]} 46... Qc6 {[%clk 0:00:05.9]}
47. Qh4 {[%clk 0:00:05.5]} 47... Nf3+ {[%clk 0:00:06.2]} 48. Kf1 {[%clk
0:00:06]} 48... Nxh4 {[%clk 0:00:07.1]} 49. Ke2 {[%clk 0:00:06.9]} 49... Qf3+
{[%clk 0:00:07.7]} 50. Kd2 {[%clk 0:00:07.8]} 50... Nxf2 {[%clk 0:00:08.2]} 51.
Kc2 {[%clk 0:00:08.4]} 51... Ne4 {[%clk 0:00:08.1]} 52. Kb1 {[%clk 0:00:09.3]}
52... Qd1+ {[%clk 0:00:08.4]} 53. Ka2 {[%clk 0:00:10.2]} 53... Qb3+ {[%clk
0:00:09]} 54. Kb1 {[%clk 0:00:10.2]} 54... Nf3 {[%clk 0:00:09.4]} 55. Ka1 {[%clk
0:00:11.1]} 55... Ned2 {[%clk 0:00:09.2]} 56. h4 {[%clk 0:00:11.5]} 56... Qxa4#
{[%clk 0:00:09.6]} 0-1

[Event "*** Titled Tuesday Blitz"]
[Site "Chess.com"]
[Date "2021.03.16"]
[Round "11"]
[White "Pantata007"]
[Black "chessmadara"]
[Result "0-1"]
[WhiteElo "2327"]
[BlackElo "2207"]
[TimeControl "180+1"]
[EndTime "12:05:40 PDT"]
[Termination "chessmadara won on time"]

1. d4 {[%clk 0:02:58.4]} 1... Nf6 {[%clk 0:02:59.5]} 2. c4 {[%clk 0:02:57.3]}
2... g6 {[%clk 0:02:59.7]} 3. Nc3 {[%clk 0:02:57.1]} 3... d5 {[%clk 0:03:00.1]}
4. cxd5 {[%clk 0:02:58]} 4... Nxd5 {[%clk 0:03:00.7]} 5. e4 {[%clk 0:02:58.9]}
5... Nxc3 {[%clk 0:03:00.8]} 6. bxc3 {[%clk 0:02:59.8]} 6... Bg7 {[%clk
0:03:01.3]} 7. Nf3 {[%clk 0:03:00.2]} 7... c5 {[%clk 0:03:01.6]} 8. Be3 {[%clk
0:03:00.5]} 8... O-O {[%clk 0:03:01.5]} 9. Be2 {[%clk 0:02:59.5]} 9... Nc6
{[%clk 0:03:00.6]} 10. O-O {[%clk 0:02:56]} 10... Bg4 {[%clk 0:02:52.8]} 11. d5
{[%clk 0:02:54.9]} 11... Na5 {[%clk 0:02:40.5]} 12. Bxc5 {[%clk 0:02:24]} 12...
Bxc3 {[%clk 0:02:31.9]} 13. Rc1 {[%clk 0:02:24.1]} 13... Bg7 {[%clk 0:02:29.9]}
14. Bd4 {[%clk 0:02:20.5]} 14... b6 {[%clk 0:02:22.3]} 15. Bxg7 {[%clk
0:02:18.5]} 15... Kxg7 {[%clk 0:02:23.2]} 16. Qd4+ {[%clk 0:02:08.5]} 16... Kg8
{[%clk 0:02:21]} 17. e5 {[%clk 0:02:08.6]} 17... Bd7 {[%clk 0:01:56.8]} 18. Ba6
{[%clk 0:01:55.3]} 18... Bc8 {[%clk 0:01:53]} 19. Bd3 {[%clk 0:01:33.3]} 19...
Bb7 {[%clk 0:01:48.5]} 20. Be4 {[%clk 0:01:26.5]} 20... Rc8 {[%clk 0:01:36.1]}
21. Rxc8 {[%clk 0:01:25.4]} 21... Qxc8 {[%clk 0:01:33.9]} 22. e6 {[%clk
0:01:06]} 22... f6 {[%clk 0:01:20.1]} 23. Rd1 {[%clk 0:00:15.6]} 23... Rd8
{[%clk 0:01:16.1]} 24. h4 {[%clk 0:00:08.2]} 24... Ba8 {[%clk 0:01:15.1]} 25. h5
{[%clk 0:00:07.8]} 25... Kg7 {[%clk 0:01:14]} 26. hxg6 {[%clk 0:00:07.4]} 26...
hxg6 {[%clk 0:01:14.9]} 27. Nh4 {[%clk 0:00:06.9]} 27... Nc6 {[%clk 0:01:09.2]}
28. Qe3 {[%clk 0:00:03.6]} 28... Ne5 {[%clk 0:01:08.9]} 29. Qg3 {[%clk
0:00:03.9]} 29... Rg8 {[%clk 0:00:14.6]} 30. f4 {[%clk 0:00:03.7]} 30... Qc4
{[%clk 0:00:12.7]} 31. Kh2 {[%clk 0:00:04.1]} 31... Qxe4 {[%clk 0:00:12.4]} 32.
fxe5 {[%clk 0:00:04.2]} 32... Qxe5 {[%clk 0:00:11.1]} 33. Qxe5 {[%clk
0:00:02.8]} 33... fxe5 {[%clk 0:00:11.4]} 34. d6 {[%clk 0:00:03]} 34... exd6
{[%clk 0:00:11]} 35. Rxd6 {[%clk 0:00:03.4]} 35... Kf6 {[%clk 0:00:11.6]} 36.
Rd7 {[%clk 0:00:02.6]} 36... Kxe6 {[%clk 0:00:11.4]} 37. Rxa7 {[%clk 0:00:02.9]}
37... Bd5 {[%clk 0:00:11]} 38. Ra6 {[%clk 0:00:02.2]} 38... Rb8 {[%clk
0:00:09.3]} 39. Nxg6 {[%clk 0:00:02.5]} 39... Bc4 {[%clk 0:00:07.9]} 40. Ra4
{[%clk 0:00:02.1]} 40... b5 {[%clk 0:00:07.8]} 41. Rb4 {[%clk 0:00:02.7]} 41...
Kd5 {[%clk 0:00:07.4]} 42. Rb2 {[%clk 0:00:01.9]} 42... Kc5 {[%clk 0:00:07.1]}
43. Nh4 {[%clk 0:00:02.1]} 43... Ra8 {[%clk 0:00:06.4]} 44. Nf5 {[%clk 0:00:02]}
44... Rxa2 {[%clk 0:00:06.1]} 45. Rxa2 {[%clk 0:00:01.9]} 45... Bxa2 {[%clk
0:00:07]} 46. g4 {[%clk 0:00:02.7]} 46... b4 {[%clk 0:00:07]} 47. g5 {[%clk
0:00:02.7]} 47... b3 {[%clk 0:00:07.4]} 48. Ne3 {[%clk 0:00:01.6]} 48... b2
{[%clk 0:00:07.7]} 0-1

[Event "*** Titled Tuesday Blitz"]
[Site "Chess.com"]
[Date "2021.03.16"]
[Round "11"]
[White "Natalya_Buksa"]
[Black "Sanyura"]
[Result "1/2-1/2"]
[WhiteElo "2505"]
[BlackElo "2616"]
[TimeControl "180+1"]
[EndTime "12:05:57 PDT"]
[Termination "Game drawn by repetition"]

1. d4 {[%clk 0:03:00.9]} 1... Nf6 {[%clk 0:02:33.8]} 2. Nc3 {[%clk 0:03:00.2]}
2... d5 {[%clk 0:02:33.4]} 3. Bf4 {[%clk 0:02:59.1]} 3... a6 {[%clk 0:02:32]} 4.
e3 {[%clk 0:02:58.7]} 4... c5 {[%clk 0:02:32.3]} 5. Nf3 {[%clk 0:02:59.2]} 5...
e6 {[%clk 0:02:32.6]} 6. dxc5 {[%clk 0:02:57.4]} 6... Bxc5 {[%clk 0:02:31.8]} 7.
Bd3 {[%clk 0:02:58.3]} 7... Nc6 {[%clk 0:02:31.9]} 8. O-O {[%clk 0:02:58.5]}
8... Qe7 {[%clk 0:02:32.4]} 9. e4 {[%clk 0:02:58.6]} 9... d4 {[%clk 0:02:29.5]}
10. Na4 {[%clk 0:02:50.1]} 10... Ba7 {[%clk 0:02:13.7]} 11. b3 {[%clk
0:02:45.4]} 11... e5 {[%clk 0:02:09.2]} 12. Bg5 {[%clk 0:02:45.8]} 12... h6
{[%clk 0:02:09.2]} 13. Bd2 {[%clk 0:02:42.8]} 13... O-O {[%clk 0:02:05.2]} 14.
Nb2 {[%clk 0:02:43]} 14... Nh5 {[%clk 0:01:48.5]} 15. Nxd4 {[%clk 0:02:26.8]}
15... Bxd4 {[%clk 0:01:36.2]} 16. c3 {[%clk 0:02:26.9]} 16... Nf4 {[%clk
0:01:00.3]} 17. cxd4 {[%clk 0:02:23.2]} 17... Nxd4 {[%clk 0:01:01.2]} 18. Bxf4
{[%clk 0:02:07.6]} 18... exf4 {[%clk 0:01:02.1]} 19. Bc4 {[%clk 0:02:08]} 19...
Rd8 {[%clk 0:00:58.9]} 20. Bd5 {[%clk 0:01:59.9]} 20... Nc6 {[%clk 0:00:55.7]}
21. Nd3 {[%clk 0:01:44.6]} 21... Qg5 {[%clk 0:00:46.5]} 22. Qd2 {[%clk
0:01:08.9]} 22... Bh3 {[%clk 0:00:36.7]} 23. f3 {[%clk 0:01:03.8]} 23... Be6
{[%clk 0:00:25.8]} 24. Nxf4 {[%clk 0:00:41.8]} 24... Bxd5 {[%clk 0:00:15.7]} 25.
exd5 {[%clk 0:00:42.7]} 25... Ne7 {[%clk 0:00:15.9]} 26. Rad1 {[%clk 0:00:42.5]}
26... Rd6 {[%clk 0:00:16.2]} 27. Rfe1 {[%clk 0:00:40.7]} 27... Rad8 {[%clk
0:00:15.8]} 28. Nh3 {[%clk 0:00:32]} 28... Qxd2 {[%clk 0:00:15.6]} 29. Rxd2
{[%clk 0:00:32.9]} 29... Nxd5 {[%clk 0:00:15.9]} 30. Red1 {[%clk 0:00:32.8]}
30... R6d7 {[%clk 0:00:15]} 31. Nf4 {[%clk 0:00:31.9]} 31... Nf6 {[%clk
0:00:15.2]} 32. Rxd7 {[%clk 0:00:26.9]} 32... Rxd7 {[%clk 0:00:16.1]} 33. Rxd7
{[%clk 0:00:27]} 33... Nxd7 {[%clk 0:00:16.7]} 34. Kf2 {[%clk 0:00:27.5]} 34...
Kf8 {[%clk 0:00:16.3]} 35. Ke3 {[%clk 0:00:28]} 35... Ke7 {[%clk 0:00:16.8]} 36.
Kd4 {[%clk 0:00:27.9]} 36... Kd6 {[%clk 0:00:17.1]} 37. Nd3 {[%clk 0:00:28.5]}
37... Nb8 {[%clk 0:00:11.5]} 38. Nf2 {[%clk 0:00:27]} 38... Nc6+ {[%clk
0:00:11.4]} 39. Kc3 {[%clk 0:00:23.4]} 39... Kd5 {[%clk 0:00:10.8]} 40. Nd3
{[%clk 0:00:22.4]} 40... b6 {[%clk 0:00:09]} 41. a4 {[%clk 0:00:22]} 41... a5
{[%clk 0:00:08.6]} 42. b4 {[%clk 0:00:20.6]} 42... axb4+ {[%clk 0:00:06.6]} 43.
Nxb4+ {[%clk 0:00:21]} 43... Kc5 {[%clk 0:00:06.8]} 44. Nxc6 {[%clk 0:00:20.8]}
44... Kxc6 {[%clk 0:00:07.7]} 45. Kc4 {[%clk 0:00:21.7]} 45... Kd6 {[%clk
0:00:08]} 46. Kb5 {[%clk 0:00:21.7]} 46... Kc7 {[%clk 0:00:08.5]} 47. h4 {[%clk
0:00:20.4]} 47... h5 {[%clk 0:00:08.5]} 48. g4 {[%clk 0:00:20.5]} 48... g6
{[%clk 0:00:04.9]} 49. gxh5 {[%clk 0:00:20.3]} 49... gxh5 {[%clk 0:00:05.8]} 50.
f4 {[%clk 0:00:20.7]} 50... f5 {[%clk 0:00:05.9]} 51. Kb4 {[%clk 0:00:20.4]}
51... Kc6 {[%clk 0:00:06.2]} 52. Kc4 {[%clk 0:00:21]} 52... Kd6 {[%clk
0:00:06.6]} 53. Kd4 {[%clk 0:00:21.4]} 53... Ke6 {[%clk 0:00:06.1]} 54. Kc4
{[%clk 0:00:20.7]} 54... Kd6 {[%clk 0:00:06.6]} 55. Kb5 {[%clk 0:00:12.5]} 55...
Kc7 {[%clk 0:00:06.8]} 56. Kb4 {[%clk 0:00:08.1]} 56... Kd6 {[%clk 0:00:04.8]}
57. Kc4 {[%clk 0:00:06.6]} 57... Kc6 {[%clk 0:00:05.2]} 58. Kd4 {[%clk
0:00:06.6]} 58... Kd6 {[%clk 0:00:05.6]} 59. Kc4 {[%clk 0:00:07.2]} 59... Kc6
{[%clk 0:00:06.1]} 60. Kb4 {[%clk 0:00:07.3]} 60... Kd6 {[%clk 0:00:06.5]} 61.
Kb5 {[%clk 0:00:07.3]} 61... Kc7 {[%clk 0:00:06.9]} 1/2-1/2

[Event "*** Titled Tuesday Blitz"]
[Site "Chess.com"]
[Date "2021.03.16"]
[Round "11"]
[White "ChessQueen"]
[Black "Gabix_94"]
[Result "1-0"]
[WhiteElo "2726"]
[BlackElo "2803"]
[TimeControl "180+1"]
[EndTime "12:05:58 PDT"]
[Termination "ChessQueen won by resignation"]

1. e4 {[%clk 0:03:00.9]} 1... e5 {[%clk 0:02:57.6]} 2. Nf3 {[%clk 0:03:00.3]}
2... Nc6 {[%clk 0:02:58.1]} 3. Bc4 {[%clk 0:03:00.4]} 3... Nf6 {[%clk
0:02:57.9]} 4. d3 {[%clk 0:03:00.4]} 4... Be7 {[%clk 0:02:56.6]} 5. O-O {[%clk
0:02:59.7]} 5... O-O {[%clk 0:02:57.2]} 6. Re1 {[%clk 0:02:59]} 6... d6 {[%clk
0:02:57]} 7. a4 {[%clk 0:02:58]} 7... Kh8 {[%clk 0:02:55.8]} 8. Nc3 {[%clk
0:02:55.2]} 8... Ng8 {[%clk 0:02:55.3]} 9. Nd5 {[%clk 0:02:50.5]} 9... f5 {[%clk
0:02:54.2]} 10. Nxe7 {[%clk 0:02:25.6]} 10... Ncxe7 {[%clk 0:02:48]} 11. Ng5
{[%clk 0:02:20.9]} 11... Qe8 {[%clk 0:02:41.4]} 12. exf5 {[%clk 0:02:04.6]}
12... Nxf5 {[%clk 0:02:32.7]} 13. f4 {[%clk 0:01:56.3]} 13... Qg6 {[%clk
0:02:09.8]} 14. fxe5 {[%clk 0:01:50.8]} 14... dxe5 {[%clk 0:02:07.8]} 15. Rxe5
{[%clk 0:01:40.6]} 15... Bd7 {[%clk 0:02:00.2]} 16. Bd2 {[%clk 0:00:47]} 16...
Ngh6 {[%clk 0:01:53.9]} 17. Kh1 {[%clk 0:00:38.1]} 17... Nd6 {[%clk 0:01:48.1]}
18. Be6 {[%clk 0:00:27]} 18... Rae8 {[%clk 0:01:45.2]} 19. Qe2 {[%clk 0:00:25]}
19... Bc6 {[%clk 0:01:39.7]} 20. Rf1 {[%clk 0:00:22.8]} 20... Bxa4 {[%clk
0:01:26]} 21. b3 {[%clk 0:00:17.9]} 21... Bc6 {[%clk 0:01:24.9]} 22. h3 {[%clk
0:00:18]} 22... b6 {[%clk 0:01:20.4]} 23. Rxf8+ {[%clk 0:00:15.5]} 23... Rxf8
{[%clk 0:01:20.2]} 24. Bc3 {[%clk 0:00:11]} 24... Nhf5 {[%clk 0:01:17.6]} 25.
Bxf5 {[%clk 0:00:10.4]} 25... Nxf5 {[%clk 0:01:18.5]} 26. Qg4 {[%clk 0:00:08.3]}
26... Bd7 {[%clk 0:01:12.1]} 27. Ne6 {[%clk 0:00:08.1]} 27... Bxe6 {[%clk
0:00:45.9]} 28. Qxg6 {[%clk 0:00:07.7]} 28... hxg6 {[%clk 0:00:46.8]} 29. Rxe6
{[%clk 0:00:08.4]} 29... Kh7 {[%clk 0:00:47.7]} 30. Kh2 {[%clk 0:00:08.6]} 30...
Rf7 {[%clk 0:00:45.9]} 31. Re4 {[%clk 0:00:08.8]} 31... g5 {[%clk 0:00:45.4]}
32. Re5 {[%clk 0:00:08.7]} 32... Kh6 {[%clk 0:00:43.1]} 33. Re6+ {[%clk
0:00:09.1]} 33... g6 {[%clk 0:00:43.1]} 34. Rc6 {[%clk 0:00:09.7]} 34... Nh4
{[%clk 0:00:40.5]} 35. Bd4 {[%clk 0:00:09.1]} 35... g4 {[%clk 0:00:34.5]} 36.
Be3+ {[%clk 0:00:09]} 36... Kh5 {[%clk 0:00:34.3]} 37. Rc4 {[%clk 0:00:09.4]}
37... g3+ {[%clk 0:00:20.3]} 38. Kxg3 {[%clk 0:00:09.7]} 38... Nf5+ {[%clk
0:00:21]} 39. Kf2 {[%clk 0:00:10.4]} 39... Nh4+ {[%clk 0:00:08.7]} 40. Rf4
{[%clk 0:00:10.1]} 40... Rxf4+ {[%clk 0:00:07.6]} 41. Bxf4 {[%clk 0:00:11]}
41... g5 {[%clk 0:00:06.8]} 42. Bxc7 {[%clk 0:00:11]} 42... Kg6 {[%clk
0:00:07.3]} 43. Bb8 {[%clk 0:00:11.3]} 43... a6 {[%clk 0:00:07.8]} 44. Ba7
{[%clk 0:00:11.5]} 44... b5 {[%clk 0:00:08.7]} 45. g4 {[%clk 0:00:11.7]} 45...
Kf7 {[%clk 0:00:08.3]} 46. Bd4 {[%clk 0:00:11.6]} 46... Ng6 {[%clk 0:00:06.7]}
47. Be3 {[%clk 0:00:12.3]} 47... Kf6 {[%clk 0:00:06.8]} 48. Kf3 {[%clk
0:00:11.9]} 48... b4 {[%clk 0:00:07.2]} 49. Ke4 {[%clk 0:00:12]} 49... Ke6
{[%clk 0:00:07.6]} 50. Bxg5 {[%clk 0:00:12]} 50... a5 {[%clk 0:00:07.7]} 51. Be3
{[%clk 0:00:11.8]} 51... Ne5 {[%clk 0:00:08]} 52. Bb6 {[%clk 0:00:11.9]} 52...
Nc6 {[%clk 0:00:08.6]} 53. h4 {[%clk 0:00:12.4]} 53... Kf6 {[%clk 0:00:08.8]}
54. g5+ {[%clk 0:00:12]} 54... Kg6 {[%clk 0:00:09.3]} 55. Kf4 {[%clk 0:00:12.6]}
55... Ne7 {[%clk 0:00:09.3]} 56. Bxa5 {[%clk 0:00:12.1]} 56... Nd5+ {[%clk
0:00:10]} 57. Ke4 {[%clk 0:00:12.3]} 57... Nc3+ {[%clk 0:00:09.6]} 58. Kd4
{[%clk 0:00:12.2]} 58... Nb5+ {[%clk 0:00:10.2]} 59. Kc4 {[%clk 0:00:12.3]}
59... Na3+ {[%clk 0:00:11.1]} 60. Kxb4 {[%clk 0:00:12.1]} 60... Nxc2+ {[%clk
0:00:12]} 61. Kc3 {[%clk 0:00:13]} 61... Ne1 {[%clk 0:00:12]} 62. b4 {[%clk
0:00:13.3]} 62... Nf3 {[%clk 0:00:12.7]} 63. b5 {[%clk 0:00:13.7]} 63... Nxh4
{[%clk 0:00:13.2]} 64. b6 {[%clk 0:00:14]} 64... Nf5 {[%clk 0:00:14.1]} 65. b7
{[%clk 0:00:14.2]} 65... Ne7 {[%clk 0:00:14.7]} 66. b8=Q {[%clk 0:00:14.4]}
66... Nd5+ {[%clk 0:00:15.6]} 67. Kd4 {[%clk 0:00:13.9]} 1-0